bitfinex/quotes_ETHUSD_20240819
["timestamp","ask_amount","ask_price","bid_price","bid_amount"]
[1724093111868,0.55,2616.0,2615.5,3.82324]
[1724093112095,0.55,2616.0,2615.6,3.82319]
[1724093112291,0.55,2616.0,2615.5,3.82335]
[1724093112511,4.37272,2616.0,2615.5,3.82335]
[1724093112726,2.3209,2615.7,2615.1,6.82384]
[1724093113043,2.3209,2615.7,2615.3,3.82364]
[1724093113324,2.3209,2615.7,2615.1,10.64766]
[1724093113494,2.3209,2615.7,2615.1,6.82382]
[1724093114121,3.82331,2615.6,2614.9,3.82413]
[1724093114287,3.82352,2615.4,2614.9,3.82413]
[1724093114615,10.9128,2615.9,2614.9,3.82413]
[1724093114616,2.3138,2615.8,2614.9,3.942]
[1724093114918,2.3138,2615.8,2615.3,3.8236]
[1724093114919,2.8638,2615.8,2615.3,3.8236]
[1724093115075,2.8638,2615.8,2615.3,3.82358]
[1724093115421,7.09,2615.9,2615.5,3.82327]
[1724093115640,3.82256,2616.1,2615.5,3.82327]
[1724093115792,0.55,2616.0,2615.5,7.64656]
[1724093116307,0.55,2616.0,2615.5,3.82327]
[1724093116512,0.55,2616.0,2615.5,7.64655]
[1724093117182,0.55,2616.0,2615.5,3.82327]
[1724093117926,5.423508,2616.0,2615.5,3.82335]
[1724093118485,5.423508,2616.0,2615.4,3.8235]
[1724093118723,6.19918,2615.9,2615.4,3.8235]
[1724093119039,2.3764,2615.6,2615.1,3.0]
[1724093119253,2.3764,2615.6,2615.1,6.82386]
[1724093119395,2.3764,2615.6,2615.1,3.82386]
[1724093120401,2.3764,2615.6,2615.0,3.82395]
[1724093120402,4.37337,2615.5,2615.0,3.82395]
[1724093120605,4.37337,2615.5,2614.9,7.37]
[1724093120606,2.3793,2615.4,2614.9,11.19423]
[1724093120823,2.3793,2615.4,2614.9,3.82417]
[1724093121123,2.3793,2615.4,2615.0,3.82399]
[1724093121659,2.3793,2615.4,2614.9,3.82416]
[1724093121861,6.2028,2615.4,2614.9,3.82416]
[1724093122000,6.2028,2615.4,2614.8,3.0]
[1724093122001,3.82371,2615.3,2614.8,3.0]
[1724093122200,3.82386,2615.2,2614.8,3.0]
[1724093122763,3.82366,2615.3,2614.9,0.06524667]
[1724093123047,0.55,2615.5,2615.0,3.824]
[1724093123268,0.55,2615.5,2614.9,0.06524667]
[1724093123269,6.29543,2616.0,2615.3,3.82362]
[1724093123610,2.4728,2616.0,2615.5,3.82334]
[1724093123938,6.29545,2616.0,2615.6,0.06549934]
[1724093124139,2.4728,2616.0,2615.6,0.06549934]
[1724093124300,6.29545,2616.0,2615.6,0.06549934]
[1724093124500,2.4728,2616.0,2615.7,3.82297]
[1724093124723,2.3085,2616.3,2615.7,0.1051147]
[1724093124902,2.3085,2616.6,2616.3,3.82217]
[1724093125102,2.3085,2616.6,2616.1,3.82246]
[1724093125103,2.3085,2616.6,2616.2,3.82225]
[1724093125408,2.3085,2616.6,2615.8,3.942]
[1724093125726,2.3085,2616.6,2616.1,3.82236]
[1724093125932,2.3085,2616.6,2616.2,3.82231]
[1724093126128,2.3085,2616.6,2616.0,3.82259]
[1724093126328,3.82191,2616.5,2616.3,0.06517273]
[1724093126530,2.3085,2616.6,2616.2,3.82233]
[1724093126848,2.3085,2616.6,2616.0,3.82251]
[1724093127148,6.13028,2616.6,2616.3,0.06517273]
[1724093127458,7.83447,2616.6,2616.4,0.06517273]
[1724093127619,3.82189,2616.5,2615.9,6.82277]
[1724093127825,3.82189,2616.5,2616.0,0.06517273]
[1724093128741,3.82204,2616.5,2616.0,0.06517273]
[1724093128948,3.82222,2616.3,2616.0,0.06517273]
[1724093129147,6.23748,2616.1,2616.0,0.06517273]
[1724093129344,6.23748,2616.1,2615.3,3.82364]
[1724093129345,3.82285,2615.9,2615.3,3.82364]
[1724093129549,3.82285,2615.9,2615.4,3.82347]
[1724093129761,13.32759,2616.1,2615.4,3.88815756]
[1724093129916,0.55,2616.0,2615.6,3.82314]
[1724093130269,9.505,2616.1,2615.6,3.82314]
[1724093130409,9.505,2616.1,2615.7,0.06466756]
[1724093130604,15.042457,2616.1,2615.7,0.06466756]
[1724093130808,0.55,2616.0,2615.7,0.06466756]
[1724093131040,0.55,2616.0,2615.5,6.82336]
[1724093131244,0.55,2616.0,2615.8,0.06466756]
[1724093131549,0.55,2616.0,2615.6,3.8232]
[1724093131709,0.55,2616.0,2615.9,0.06466756]
[1724093131917,0.55,2616.0,2615.6,3.8232]
[1724093132550,2.415,2616.1,2615.7,3.88758756]
[1724093132935,6.2375,2616.1,2615.7,0.06466756]
[1724093133331,0.55,2616.0,2615.7,0.06466756]
[1724093133531,4.37272,2616.0,2615.5,6.82325]
[1724093134044,4.37272,2616.0,2615.6,0.06466756]
[1724093134930,5.433742,2616.0,2615.6,0.06466756]
[1724093135643,1.611022,2616.0,2615.6,0.06466756]
[1724093135969,0.55,2616.0,2615.6,0.06466756]
[1724093136336,4.37265,2616.0,2615.6,0.06466756]
[1724093138061,3.82278,2615.9,2615.6,0.06466756]
[1724093138244,3.82278,2615.9,2615.4,3.82348]
[1724093138443,3.82278,2615.9,2615.7,0.06462496]
[1724093138659,4.883808,2615.9,2615.4,3.82348]
[1724093138869,4.883808,2615.9,2615.8,0.06462496]
[1724093139074,3.82326,2615.6,2615.0,3.82401]
[1724093139273,4.056128,2615.9,2615.0,3.82401]
[1724093139274,3.8231,2615.7,2615.0,3.82399]
[1724093139474,4.37325,2615.6,2615.0,3.82399]
[1724093139660,7.09,2615.8,2615.3,3.82357]
[1724093139871,0.55,2615.7,2615.3,3.82357]
[1724093141592,7.09,2615.8,2615.4,3.82349]
[1724093143079,7.09,2615.8,2615.2,3.82368]
[1724093143239,4.37314,2615.7,2615.1,3.82387]
[1724093143445,1.146314,2615.6,2615.2,3.82378]
[1724093143842,4.37314,2615.7,2615.2,3.82378]
[1724093144074,7.09,2615.8,2614.9,3.942]
[1724093144275,7.09,2615.8,2615.5,3.82321]
[1724093144582,7.09,2615.8,2615.6,3.82313]
[1724093144743,3.8225,2616.1,2615.6,3.82313]
[1724093144945,0.55,2616.0,2615.6,3.82313]
[1724093146382,0.55,2616.0,2615.5,3.82332]
[1724093146584,4.37266,2616.0,2615.5,3.82332]
[1724093147380,0.55,2616.0,2615.6,3.82319]
[1724093148380,0.55,2616.0,2615.4,4.88465127]
[1724093148381,4.37263,2616.0,2615.4,4.88465127]
[1724093148582,6.22164,2615.9,2615.4,3.82336]
[1724093149391,3.82313,2615.7,2615.2,3.8237]
[1724093149574,3.82313,2615.7,2615.3,3.0]
[1724093149979,3.82313,2615.7,2615.2,3.8237]
[1724093150175,2.4345,2615.7,2615.0,3.82397]
[1724093150495,3.82343,2615.5,2615.0,3.82397]
[1724093150676,2.4345,2615.4,2615.0,3.82397]
[1724093150888,2.4345,2615.4,2615.0,7.64799]
[1724093151240,2.4345,2615.4,2615.1,3.82388]
[1724093151385,2.4345,2615.4,2614.9,3.0]
[1724093151588,4.06717,2615.3,2614.6,4.2305083]
[1724093151784,0.55,2615.2,2614.7,3.82446]
[1724093152623,0.55,2615.2,2614.8,3.82438]
[1724093152784,0.55,2615.3,2614.8,3.88948942]
[1724093153624,2.4345,2615.4,2614.8,5.35509536]
[1724093153794,2.4345,2615.4,2614.8,5.35507536]
[1724093154122,2.4345,2615.4,2615.0,3.824]
[1724093154478,2.4345,2615.4,2615.1,0.06517942]
[1724093155127,7.09,2615.5,2615.1,0.06517942]
[1724093155578,10.91337,2615.5,2615.1,0.06517942]
[1724093156018,7.09,2615.5,2615.1,0.06517942]
[1724093156394,10.91339,2615.5,2615.1,0.06517942]
[1724093157135,2.3862,2615.3,2615.1,0.06517942]
[1724093157625,5.546731,2615.5,2615.0,3.82399]
[1724093157626,1.723341,2615.5,2615.0,3.82399]
[1724093157811,3.82364,2615.4,2615.2,0.06517942]
[1724093158018,3.82364,2615.4,2614.8,3.82426]
[1724093158198,4.37366,2615.3,2614.8,3.82426]
[1724093158925,4.37366,2615.3,2614.7,3.942]
[1724093158926,3.82379,2615.2,2614.7,7.76651]
[1724093159128,4.37366,2615.3,2614.4,3.82494]
[1724093159129,3.8243,2614.9,2614.4,3.82494]
[1724093159289,3.82409,2615.0,2614.4,3.8249]
[1724093159496,2.3431,2615.1,2614.4,3.942]
[1724093159695,7.09,2615.2,2614.7,3.82444]
[1724093160019,7.09,2615.2,2614.8,3.82437]
[1724093161020,10.91386,2615.2,2614.6,3.82455]
[1724093161335,10.91386,2615.2,2614.5,3.8247]
[1724093161336,3.82396,2615.1,2614.5,3.8247]
[1724093161632,7.09,2615.2,2614.7,3.82445]
[1724093162302,7.09,2615.2,2614.9,3.82412]
[1724093163042,2.4097,2615.4,2614.9,3.82412]
[1724093163539,2.4097,2615.4,2614.9,3.82423]
[1724093164136,2.4097,2615.4,2614.9,3.82417]
[1724093164377,2.4097,2615.4,2614.9,3.82416]
[1724093164522,6.23321,2615.4,2614.9,3.82416]
[1724093164728,7.09,2615.7,2614.9,3.82416]
[1724093164729,10.91307,2615.7,2615.1,3.82379]
[1724093165044,9.4127,2615.7,2615.1,3.82379]
[1724093165257,3.82323,2615.6,2615.1,3.82379]
[1724093165654,3.82323,2615.6,2615.2,0.06613486]
[1724093165864,5.147013,2615.5,2615.2,0.06613486]
[1724093166163,5.147013,2615.5,2615.0,3.82407]
[1724093166471,0.55,2615.4,2615.0,3.82407]
[1724093166767,0.55,2615.4,2615.1,0.06613486]
[1724093167065,2.2529,2615.3,2615.1,0.06613486]
[1724093167266,3.82379,2615.2,2615.1,0.06613486]
[1724093167590,4.486459,2615.2,2614.7,3.82451]
[1724093167730,6.07657,2615.3,2615.1,0.06613486]
[1724093167930,6.07657,2615.3,2614.7,3.82443]
[1724093168153,6.07657,2615.3,2615.2,0.06613486]
[1724093168353,3.82385,2615.2,2614.7,3.82443]
[1724093168960,3.847912,2615.3,2614.5,3.0]
[1724093169157,3.82416,2615.0,2614.5,3.82478]
[1724093169365,3.82416,2615.0,2614.4,6.82485]
[1724093169366,4.37424,2614.9,2614.4,3.82485]
[1724093169972,6.17358,2614.8,2614.2,3.82519]
[1724093170136,9.99807,2614.8,2614.2,3.82519]
[1724093170532,9.99807,2614.8,2614.3,3.0]
[1724093170735,0.55,2614.9,2613.7,3.8259]
[1724093170736,3.82497,2614.4,2613.7,3.8259]
[1724093170954,2.3719,2614.6,2613.7,0.61796]
[1724093171259,2.3719,2614.6,2613.8,3.8258]
[1724093171260,4.37482,2614.5,2613.8,3.8258]
[1724093171583,4.37482,2614.5,2613.9,3.82568]
[1724093171763,0.55,2614.5,2614.0,3.82551]
[1724093172140,0.55,2614.5,2613.9,3.82569]
[1724093172141,4.37483,2614.5,2613.9,3.82569]
[1724093172543,8.19977,2614.5,2613.9,3.82569]
[1724093172787,3.82498,2614.4,2613.8,4.26041527]
[1724093173133,3.82511,2614.3,2613.8,4.26041527]
[1724093173439,3.8254,2614.1,2613.6,6.82613]
[1724093174538,6.2537,2614.2,2613.7,3.82598]
[1724093174975,6.2537,2614.2,2613.6,3.0]
[1724093174976,3.82542,2614.1,2613.6,3.0]
[1724093175137,6.25367,2614.2,2613.6,12.111611]
[1724093175335,6.25367,2614.2,2613.6,8.285501]
[1724093175609,3.82562,2614.0,2613.6,3.0]
[1724093175802,6.22617038,2615.1,2614.2,3.82516]
[1724093175976,2.4284,2614.8,2614.3,3.82507]
[1724093176179,2.4284,2614.8,2613.9,3.0]
[1724093176180,2.4284,2614.8,2613.9,10.37]
[1724093176365,3.82499,2614.4,2613.9,7.37]
[1724093177007,2.4284,2614.6,2613.9,7.37]
[1724093177208,3.82513,2614.3,2613.9,7.37]
[1724093177568,6.25367,2614.2,2613.9,7.37]
[1724093178080,3.8254,2614.1,2613.9,7.37]
[1724093178377,2.4284,2614.2,2613.5,3.82617]
[1724093178703,0.55,2614.1,2613.7,3.82596]
[1724093179018,2.4284,2614.2,2613.7,3.82591]
[1724093179219,2.4284,2614.2,2613.6,3.682617]
[1724093179446,3.82541,2614.1,2613.6,3.682617]
[1724093180403,2.4284,2614.2,2613.7,3.82598]
[1724093181105,6.25366,2614.2,2613.7,3.82598]
[1724093181307,4.833294,2614.1,2613.6,6.82613]
[1724093181613,3.82541,2614.1,2613.6,6.82613]
[1724093182219,3.82557,2614.0,2613.6,3.0]
[1724093182790,3.82557,2614.0,2613.7,0.06698597]
[1724093183197,3.82557,2614.0,2613.5,6.82628]
[1724093183402,3.82557,2614.0,2613.8,0.06725745]
[1724093183713,10.07904,2614.2,2613.9,0.06725745]
[1724093183931,0.55,2614.1,2613.6,3.82607]
[1724093184137,0.55,2614.1,2614.0,0.06732532]
[1724093184284,0.55,2614.1,2613.6,3.82607]
[1724093184480,2.4284,2614.2,2614.0,0.06732532]
[1724093184716,2.4284,2614.2,2613.7,3.82588]
[1724093184919,6.25372,2614.2,2614.1,0.06732532]
[1724093185085,10.62906,2614.2,2613.6,3.82612]
[1724093185423,7.866626,2614.2,2613.7,0.06732532]
[1724093185977,3.82542,2614.1,2613.7,0.06732532]
[1724093186332,3.82571,2613.9,2613.7,0.06732532]
[1724093186533,3.82571,2613.9,2613.5,3.0]
[1724093186829,2.417,2613.8,2613.5,3.0]
[1724093187070,6.24286,2613.8,2613.4,3.0]
[1724093187209,6.24286,2613.8,2613.0,11.19693]
[1724093187210,3.82604,2613.7,2613.0,11.19693]
[1724093187407,3.82621,2613.6,2613.1,3.82677]
[1724093187659,0.55,2613.7,2613.1,3.82677]
[1724093187856,1.3299787,2613.7,2613.1,3.82677]
[1724093188560,6.20686,2613.4,2612.9,3.0]
[1724093189650,6.20686,2613.4,2612.9,6.82714]
[1724093189947,2.3803,2613.4,2612.9,6.82714]
[1724093191051,7.210022,2613.4,2612.6,2.94377268]
[1724093191351,2.3803,2613.4,2612.8,3.82718]
[1724093191524,2.3803,2613.4,2613.0,3.82694]
[1724093192034,2.3803,2613.4,2612.8,7.65434]
[1724093192441,2.3803,2613.4,2612.9,3.8271]
[1724093195763,2.3803,2613.4,2613.0,3.82699]
[1724093196566,6.20674,2613.4,2612.9,3.82715]
[1724093196766,6.827389,2613.4,2612.9,3.82715]
[1724093197756,6.827389,2613.4,2613.0,0.06567324]
[1724093198567,0.620649,2613.4,2613.0,0.06567324]
[1724093198767,0.620649,2613.4,2612.6,6.82752]
[1724093198768,6.18157,2613.1,2612.6,3.0]
[1724093199171,2.3547,2612.9,2612.3,0.3834]
[1724093199513,6.18238,2612.6,2612.0,3.82846]
[1724093199660,3.82783,2612.5,2611.9,3.82861]
[1724093199862,3.82783,2612.5,2612.0,3.82846]
[1724093200076,2.3547,2612.6,2612.0,3.82846]
[1724093200396,6.18237,2612.6,2612.1,3.82832]
[1724093200596,2.3547,2612.6,2612.2,3.82818]
[1724093200826,2.3547,2612.6,2612.2,7.65619]
[1724093200977,6.18334,2612.8,2612.2,7.65619]
[1724093201177,0.55,2612.7,2612.2,3.82809]
[1724093201589,4.37746,2612.7,2612.2,3.82809]
[1724093201789,0.55,2612.7,2612.2,3.82809]
[1724093202224,0.55,2612.7,2612.2,7.6562]
[1724093202375,2.3559,2612.8,2612.4,3.82786]
[1724093202886,2.3559,2612.8,2612.3,3.82803]
[1724093203277,2.3559,2612.8,2612.4,3.82788]
[1724093203718,4.37748,2612.7,2612.2,3.82809]
[1724093203899,1.877307,2612.7,2612.2,3.82809]
[1724093204095,2.3559,2612.8,2612.5,3.8276]
[1724093204703,2.3559,2612.8,2612.4,3.82789]
[1724093205088,2.3559,2612.8,2612.1,3.82823]
[1724093205288,0.61831,2612.7,2612.2,3.8281]
[1724093206324,3.82749,2612.7,2612.2,3.8281]
[1724093207041,3.82749,2612.7,2611.8,7.37]
[1724093207187,3.82749,2612.7,2612.1,3.82824]
[1724093207589,2.2556,2612.5,2612.0,3.82837]
[1724093207787,2.2556,2612.5,2611.9,3.82857]
[1724093207788,3.82798,2612.4,2611.9,3.82857]
[1724093208031,2.2556,2612.5,2612.1,3.82823]
[1724093208189,2.2556,2612.5,2612.2,3.82817]
[1724093208393,18.98621,2613.6,2612.4,3.82789]
[1724093208394,2.2556,2612.8,2612.4,3.82789]
[1724093208587,2.2556,2612.8,2612.2,2.2757]
[1724093208824,2.2556,2612.8,2612.4,3.82777]
[1724093209135,2.2556,2612.8,2612.5,3.82768]
[1724093209335,2.2556,2612.8,2612.0,6.10414]
[1724093209336,2.2556,2612.8,2612.4,3.82788]
[1724093209596,2.2556,2612.8,2612.5,3.82771]
[1724093209726,2.4525,2613.1,2612.8,3.8273]
[1724093209931,2.4525,2613.1,2612.8,3.82724]
[1724093210131,10.91629,2613.5,2612.5,3.942]
[1724093210132,2.4525,2613.4,2612.5,3.942]
[1724093210338,2.4525,2613.7,2613.5,3.82628]
[1724093210511,2.4525,2614.0,2613.5,3.82628]
[1724093210850,2.4525,2614.5,2613.4,6.286]
[1724093211054,2.4525,2614.5,2614.0,7.65099]
[1724093211357,2.4525,2614.5,2614.1,3.8254]
[1724093211509,2.4525,2614.5,2614.2,3.82525]
[1724093211510,2.69775,2614.5,2614.2,3.82525]
[1724093211703,2.69775,2614.5,2614.0,3.82547]
[1724093211949,2.69775,2614.5,2613.8,3.82576]
[1724093212152,3.82519,2614.3,2613.3,0.4059183]
[1724093212320,3.82519,2614.3,2613.5,3.82619]
[1724093212519,7.65043,2614.3,2613.7,3.82598]
[1724093212713,3.82519,2614.3,2613.8,0.06420259]
[1724093212914,0.269775,2614.4,2613.9,3.82569]
[1724093213142,3.82507,2614.4,2614.0,0.06420259]
[1724093213328,6.2774,2614.5,2613.6,3.8261]
[1724093213329,3.82536,2614.2,2613.6,3.8261]
[1724093213527,3.82518,2614.3,2613.6,3.82604]
[1724093213846,3.82518,2614.3,2613.7,3.82591]
[1724093214145,4.835439,2614.3,2613.7,3.89011259]
[1724093214347,0.55,2614.2,2613.7,3.89011259]
[1724093214538,2.4525,2614.5,2613.8,3.82574]
[1724093214743,2.4525,2614.5,2614.0,3.82544]
[1724093215427,2.4525,2614.5,2614.1,0.06420259]
[1724093216755,2.4525,2614.5,2614.2,3.82526]
[1724093217056,2.4525,2614.5,2614.0,3.82544]
[1724093217480,2.4525,2614.5,2614.1,0.06420259]
[1724093217785,6.905139,2614.5,2614.1,0.06420259]
[1724093217941,6.905139,2614.5,2613.9,3.82566]
[1724093218145,6.905139,2614.5,2614.0,0.06420259]
[1724093218786,3.82519,2614.3,2614.0,0.06420259]
[1724093218993,3.825,2614.4,2613.6,3.82604]
[1724093218994,2.4858,2614.1,2613.6,3.82604]
[1724093219201,2.4858,2614.1,2613.7,0.06420259]
[1724093219406,2.4858,2614.1,2613.7,3.89018259]
[1724093219984,2.4858,2614.1,2613.7,0.06420259]
[1724093220937,6.31128,2614.1,2613.7,0.06420259]
[1724093221202,6.31128,2614.1,2613.8,0.06305576]
[1724093221363,4.37555,2614.0,2613.4,7.76832]
[1724093221687,2.4858,2614.1,2613.7,3.82589]
[1724093222283,2.4858,2614.1,2613.8,0.06305576]
[1724093222660,2.4858,2614.1,2613.7,3.82589]
[1724093222863,2.4858,2614.1,2613.9,0.06305576]
[1724093223064,2.4858,2614.1,2613.7,3.82589]
[1724093223262,2.4858,2614.1,2614.0,0.06305576]
[1724093223603,3.0,2615.0,2614.0,0.06305576]
[1724093223604,3.82465,2614.7,2614.0,0.06305576]
[1724093223755,2.2993,2615.0,2614.6,3.82456]
[1724093223955,6.35333,2615.0,2614.7,0.06305576]
[1724093224261,6.35333,2615.0,2614.2,3.82518]
[1724093224262,3.82423,2614.9,2614.2,3.82518]
[1724093224599,6.12339,2615.0,2614.3,3.88816576]
[1724093224764,2.911639,2615.0,2614.5,3.82481]
[1724093224963,2.911639,2615.0,2614.6,3.8246]
[1724093225162,2.911639,2615.0,2614.3,7.767]
[1724093225493,3.82438,2614.8,2614.3,3.825]
[1724093225688,3.82438,2614.8,2614.4,0.06305576]
[1724093226859,6.12349,2615.0,2614.4,3.88801576]
[1724093227086,7.118208,2615.0,2614.4,3.88801576]
[1724093227276,7.118208,2615.0,2614.4,3.38801576]
[1724093227476,7.118208,2615.0,2614.5,0.0609539]
[1724093228463,7.118208,2615.0,2614.5,3.8857639]
[1724093228869,7.118208,2615.0,2614.5,0.0609539]
[1724093228870,10.942388,2615.0,2614.5,0.0609539]
[1724093229074,0.7118208,2614.9,2614.5,0.0609539]
[1724093229269,4.5360708,2614.9,2614.5,0.0609539]
[1724093229472,0.7118208,2614.9,2614.5,0.0609539]
[1724093229680,4.5360608,2614.9,2614.4,3.82495]
[1724093229870,4.5360608,2614.9,2614.6,0.0609539]
[1724093230074,1.06595308,2614.8,2614.4,3.82496]
[1724093230258,1.06595308,2614.8,2614.7,0.0609539]
[1724093230602,1.06595308,2614.8,2614.4,3.82496]
[1724093230766,1.06595308,2614.8,2614.7,0.0609539]
[1724093231301,1.06595308,2614.8,2614.4,3.82496]
[1724093231998,1.06595308,2614.8,2614.5,0.0609539]
[1724093232240,6.1234,2615.0,2614.5,3.8857539]
[1724093232694,3.82382,2615.2,2614.7,3.82445]
[1724093232898,3.82382,2615.2,2614.5,3.8857539]
[1724093232899,0.55,2615.1,2614.6,3.82467]
[1724093233275,0.55,2615.1,2614.7,0.06059653]
[1724093233659,9.4491,2615.3,2614.7,0.06059653]
[1724093233858,9.4491,2615.3,2614.9,3.82422]
[1724093234091,10.776361,2615.3,2614.9,3.82422]
[1724093234294,10.776361,2615.3,2615.0,0.06059653]
[1724093234496,14.600011,2615.3,2615.0,0.06059653]
[1724093234709,3.82381,2615.2,2614.7,3.82452]
[1724093234897,5.6661781,2615.2,2615.1,0.06059653]
[1724093235074,5.6661781,2615.2,2614.7,3.82452]
[1724093235274,5.6661781,2615.2,2615.1,0.06059653]
[1724093235475,5.6661781,2615.2,2614.7,3.82452]
[1724093235676,5.6661781,2615.2,2615.1,0.06059653]
[1724093235865,5.6661781,2615.2,2614.7,3.82452]
[1724093236070,1.8423681,2615.2,2615.1,0.06059653]
[1724093236270,1.8423681,2615.2,2614.7,3.82446]
[1724093236477,1.8423681,2615.2,2615.1,0.06059653]
[1724093236681,1.8423681,2615.2,2614.7,3.82446]
[1724093236889,1.8423681,2615.2,2615.1,0.06059653]
[1724093237087,1.8423681,2615.2,2614.7,3.82446]
[1724093237323,1.8423681,2615.2,2615.1,0.06059653]
[1724093237529,1.8423681,2615.2,2614.7,7.64887]
[1724093237727,3.82379,2615.2,2615.1,0.06059653]
[1724093237880,3.82379,2615.2,2614.7,3.82441]
[1724093238081,3.82379,2615.2,2615.1,0.06059653]
[1724093238333,3.82379,2615.2,2614.7,3.82441]
[1724093238477,3.82379,2615.2,2615.1,0.06059653]
[1724093238826,5.533444,2615.2,2615.1,0.06059653]
[1724093239024,5.533444,2615.2,2614.7,3.82441]
[1724093239169,3.82379,2615.2,2614.7,3.82441]
[1724093239373,3.82379,2615.2,2614.8,0.06059653]
[1724093240011,7.09,2615.3,2615.1,3.82393]
[1724093240379,7.09,2615.3,2615.2,0.06059653]
[1724093240585,2.2793,2615.5,2615.2,0.06059653]
[1724093240981,6.10268,2615.5,2615.2,0.06059653]
[1724093241182,6.10268,2615.5,2614.6,3.82459]
[1724093241183,6.30475,2615.3,2614.6,3.82459]
[1724093241378,6.30475,2615.3,2614.7,0.06003593]
[1724093241379,3.8241,2615.0,2614.7,0.06003593]
[1724093241717,3.82395,2615.1,2614.5,3.8247]
[1724093241873,3.82395,2615.1,2614.8,0.06003593]
[1724093242079,3.82395,2615.1,2614.5,3.8247]
[1724093242478,3.82395,2615.1,2614.6,0.06003593]
[1724093242814,0.407206,2615.0,2614.6,0.06003593]
[1724093243114,0.407206,2615.0,2614.6,3.88469593]
[1724093243281,3.82395,2615.1,2614.6,3.88469593]
[1724093243821,2.4811,2615.3,2614.8,3.8243]
[1724093244025,2.4811,2615.3,2614.8,3.82437]
[1724093244220,4.31444306,2615.3,2614.8,3.82437]
[1724093244423,8.13811306,2615.3,2614.9,0.06003593]
[1724093244992,1.83334306,2615.3,2614.9,0.06003593]
[1724093245187,14.51116059,2615.5,2615.0,3.82402]
[1724093245387,3.82366,2615.3,2615.1,0.05985116]
[1724093245601,3.82366,2615.3,2614.8,3.82437]
[1724093245602,14.51116059,2615.5,2614.9,3.82413]
[1724093245806,18.33460059,2615.5,2615.0,0.05985116]
[1724093246127,0.84876784,2615.4,2615.0,0.05985116]
[1724093246303,3.82367,2615.3,2615.0,0.05985116]
[1724093246624,3.82379,2615.2,2615.1,0.05985116]
[1724093246830,3.82379,2615.2,2614.7,3.82451]
[1724093247026,4.67341278,2615.2,2614.8,0.05985116]
[1724093247256,3.82379,2615.2,2614.8,0.05985116]
[1724093249401,2.4823,2615.5,2614.8,0.05985116]
[1724093249723,13.35661,2615.8,2614.9,2.4839]
[1724093249887,5.74942782,2615.7,2614.9,2.54375116]
[1724093250235,5.74942782,2615.7,2615.1,3.82385]
[1724093250529,5.74942782,2615.7,2615.2,3.82372]
[1724093250530,1.92623782,2615.7,2615.2,3.82372]
[1724093250686,9.5336,2615.8,2615.3,3.82358]
[1724093250687,13.35654,2615.8,2615.3,3.82358]
[1724093250892,7.09,2615.8,2615.4,3.82341]
[1724093251118,10.91294,2615.8,2615.3,3.82363]
[1724093251356,13.846068,2615.8,2615.3,3.82363]
[1724093251558,13.846068,2615.8,2615.5,0.05985116]
[1724093251754,13.846068,2615.8,2615.3,3.82363]
[1724093251958,10.91294,2615.8,2615.3,3.82363]
[1724093252160,10.91294,2615.8,2615.4,0.05985116]
[1724093252733,3.82314,2615.7,2615.4,0.05985116]
[1724093253057,3.82314,2615.7,2615.1,7.64768]
[1724093253433,3.82314,2615.7,2615.2,0.05985116]
[1724093253950,3.82314,2615.7,2615.2,3.88363116]
[1724093254323,10.91293,2615.8,2615.3,3.82364]
[1724093254519,10.91293,2615.8,2615.2,3.88362116]
[1724093254775,6.130433,2615.7,2615.2,3.88362116]
[1724093255031,6.130433,2615.7,2615.2,3.88357116]
[1724093259127,9.953593,2615.7,2615.2,3.88357116]
[1724093259328,9.953593,2615.7,2615.2,0.05985116]
[1724093259329,2.4555,2615.5,2615.2,0.05985116]
[1724093259533,10.1028,2615.3,2615.2,0.05985116]
[1724093259725,10.1028,2615.3,2614.6,3.82459]
[1724093259726,3.8239,2615.2,2614.6,3.82459]
[1724093260045,3.82394,2615.1,2614.7,0.05927854]
[1724093260555,3.82417,2615.0,2614.7,0.05927854]
[1724093260872,0.24555,2615.4,2614.9,3.82411]
[1724093261031,0.24555,2615.4,2614.8,3.88358854]
[1724093261032,6.52464,2615.4,2614.8,3.88358854]
[1724093261229,6.52464,2615.4,2614.9,3.82422]
[1724093261571,1.361464,2615.3,2615.0,0.05953099]
[1724093261753,5.185184,2615.3,2615.0,0.05953099]
[1724093261952,5.185184,2615.3,2614.8,3.82438]
[1724093262340,3.82396,2615.1,2614.6,3.82453]
[1724093262491,3.82396,2615.1,2614.9,0.05953099]
[1724093262786,5.0254314,2615.1,2614.6,3.82453]
[1724093263089,6.82931,2615.2,2614.6,3.82453]
[1724093263291,2.4555,2615.2,2614.7,0.05940784]
[1724093263449,9.3672,2615.5,2614.9,3.82416]
[1724093263649,10.6978638,2615.5,2614.9,3.82416]
[1724093264292,9.3672,2615.5,2615.0,0.05950636]
[1724093264593,13.19061,2615.5,2615.0,3.88358636]
[1724093264884,9.3672,2615.5,2615.1,3.82392]
[1724093265099,9.3672,2615.5,2615.0,3.88357636]
[1724093265255,11.068573,2615.5,2614.9,3.8241]
[1724093265450,11.068573,2615.5,2615.1,0.05937705]
[1724093265451,3.82359,2615.4,2615.1,0.05937705]
[1724093265651,3.82359,2615.4,2614.9,3.8241]
[1724093265848,3.82359,2615.4,2615.2,0.05937705]
[1724093266056,3.82359,2615.4,2614.9,7.64827]
[1724093266453,2.40278013,2615.8,2615.5,3.82326]
[1724093266768,8.63457013,2616.1,2615.5,3.82327]
[1724093266967,6.23179,2616.1,2615.5,3.82327]
[1724093267167,6.23179,2616.1,2615.7,3.82298]
[1724093267168,3.65497601,2616.1,2615.7,3.82298]